Cogmind - Beta 15 @@@ ROGUE MODE // 2025.06.03 @ 17:15:58 Player: SK CalmBar Result: Destroyed by D-53 Grenadier with Mini Grenade Launcher Performance ------------- Evolutions (0) 0 Regions Visited (2) 400 Robots Destroyed (18) 90 Value Destroyed (327) 327 Prototype IDs (2) 40 Alien Tech Used (0) 0 Bonus (0) 0 TOTAL SCORE: 857 Bonus ------- None Cogmind --------- Core Integrity 0/250 Matter 290/300 Energy 92/100 System Corruption 0% Temperature Cool (0) Movement Hovering (120) Ox1 Location -10/Mines Parts ------- > --- POWER (1) -------- (None) > --- PROPULSION (2) --- Hover Unit > --- UTILITY (2) ------ Medium Storage Unit Signal Interpreter > --- WEAPON (2) ------- Light Assault Rifle > --- INVENTORY (10) --- Hover Unit Medium Matter Pod (98) Medium Matter Pod (0) Medium Matter Pod (0) Sensor Array Targeting Computer ECM Suite Peak State ------------ > --- POWER ------------ Ion Engine > --- PROPULSION ------- Wheel Wheel > --- UTILITY ---------- Small Storage Unit Targeting Computer > --- WEAPON ----------- Assault Rifle Light Assault Rifle > --- INVENTORY -------- Light Ion Engine Aluminum Leg Aluminum Leg Light Assault Rifle [Rating: 7] Favorites ----------- Power Ion Engine Engine Ion Engine Propulsion Hover Unit Wheel Wheel Hover Unit Hover Unit Utility Medium Storage Unit Storage Medium Storage Unit Processor Signal Interpreter Weapon Assault Rifle Ballistic Gun Assault Rifle Build | -11 -10 -10 ------- Run | Yrd Mat Min Slots Evolved . | . . . Power . | . . . Propulsion . | . . . Utility . | . . . Weapon . | . . . Parts Attached 16 | 5 10 1 Power 2 | 1 1 . Engine 2 | 1 1 . Core . | . . . Reactor . | . . . Propulsion 6 | 2 3 1 Treads . | . . . Leg . | . . . Wheel 2 | 2 . . Hover 4 | . 3 1 Flight . | . . . Utility 5 | . 5 . Device . | . . . Storage 3 | . 3 . Processor 2 | . 2 . Hackware . | . . . Protection . | . . . Artifact . | . . . Weapon 3 | 2 1 . Energy Gun . | . . . Energy Cannon . | . . . Ballistic Gun 3 | 2 1 . Ballistic Cannon . | . . . Launcher . | . . . Special Weapon . | . . . Impact Weapon . | . . . Slashing Weapon . | . . . Piercing Weapon . | . . . Special Melee Weapon . | . . . Unidentified Prototypes . | . . . Parts Lost 7 | . 3 4 Power 2 | . 1 1 Propulsion 3 | . 1 2 Utility . | . . . Weapon 2 | . 1 1 Highest Loss Streak 4 | . 1 4 To Critical Strikes . | . . . Average Backups 6 | 3 6 8 Power . | . . . Propulsion 1 | 1 1 2 Utility 3 | . 3 6 Weapon . | . . . Tool/Special . | . . . Unused Backups 10 | . 3 7 Power . | . . . Propulsion 3 | . 2 1 Utility 7 | . 1 6 Weapon . | . . . Tool/Special . | . . . Average Slot Usage (%) 98 | . 98 100 Engine 13 | . 13 14 Wheel 3 | . 3 . Hover 24 | . 23 28 Storage 13 | . 13 14 Processor 13 | . 13 14 Ballistic Gun 27 | . 27 28 Peak Build Rating 7 | 5 7 7 Average Rating 6 | 2 6 6 On Entrance 4 | . 5 7 Naked Turns . | . . . Heaviest Build 18 | 8 18 16 Greatest Support 20 | 20 20 12 Greatest Overweight (x) 3 | . 2 3 Average Overweight (x) . | . . 1 Largest Inventory Capacity 25 | 5 25 10 Average Capacity 9 | 5 9 10 Most Carried 9 | 5 9 8 Average Carried 6 | 3 6 7 Final Capacity 10 | 5 10 10 Final Carried 8 | 4 8 7 Class Distribution -------------------- 100% | Mutant Dominant Class ---------------- Mutant | -10/Materials Mutant | -10/Mines Resources | -11 -10 -10 ----------- Run | Yrd Mat Min Matter Collected 638 | 262 336 40 Remotely . | . . . Salvage Created 454 | 48 366 40 Parts 44 | 4 36 4 Haulers Intercepted . | . . . Recyclers Shooed . | . . . Parts Field Recycled . | . . . Retrieved Matter . | . . . Parts Self-Destructed . | . . . Prevented . | . . . Kills | -11 -10 -10 ------- Run | Yrd Mat Min Combat Hostiles Destroyed 15 | 1 11 3 Guns 15 | 1 11 3 Classes Destroyed 4 | 1 3 . Worker 1 | . 1 . Watcher 2 | . 2 . Swarmer 9 | . 6 3 Grunt 6 | 1 5 . Best Kill Streak 3 | 1 3 3 Combat Bots Only 3 | 1 3 3 Max Kills in Single Turn 1 | 1 1 1 Gunslinging . | . . . Exploded . | . . . Melee . | . . . Uniques/NPCs Destroyed . | . . . Combat | -11 -10 -10 -------- Run | Yrd Mat Min Hostile Shots Fired 93 | 3 52 38 Missed 30 | 3 18 9 Hits 63 | . 34 29 Projectile 63 | . 34 29 AOE 8 | . . 8 Critical Strikes 2 | . 1 1 Damage Taken 794 | . 299 495 Core 254 | . 65 189 Absorbed by Shields . | . . . Core Remaining (%) 100 | 100 . . Volleys Fired 54 | 3 44 7 Largest 2 | 2 2 2 Hottest 40 | 40 40 40 Shots Fired 107 | 6 87 14 Gun 107 | 6 87 14 Cannon . | . . . Launcher . | . . . Special . | . . . Kinetic 107 | 6 87 14 Thermal . | . . . Explosive . | . . . Electromagnetic . | . . . Robot Hit Streak 6 | 2 6 3 Robot Miss Streak 3 | 2 3 2 Penetration Max . | . . . Secondary Targets 3 | . 1 2 Max Gunslinging Chain 1 | . 1 1 Shots Hit Robots 56 | 3 45 8 Core Hits 27 | 2 21 4 Critical Kills . | . . . Critical Parts Destroyed 1 | . 1 . Critical Strikes 1 | . 1 . Destroy 1 | . 1 . Melee Attacks . | . . . Impact . | . . . Slashing . | . . . Piercing . | . . . Sneak Attacks . | . . . Combat Hostiles . | . . . Follow-up Attacks . | . . . Damage Inflicted 661 | 35 542 84 Guns 661 | 35 542 84 Cannons . | . . . Explosions . | . . . Melee . | . . . Ramming . | . . . Kinetic 661 | 35 542 84 Thermal . | . . . Explosive . | . . . Electromagnetic . | . . . Impact . | . . . Slashing . | . . . Piercing . | . . . Highest Corruption . | . . . Average Corruption . | . . . Corruption Purged . | . . . Corruption Blocked . | . . . Overload Shots . | . . . Overflow Damage . | . . . Projectiles . | . . . Explosions . | . . . Melee . | . . . Knockbacks . | . . . Impact . | . . . Kinetic . | . . . Secondary . | . . . Self-Inflicted Damage . | . . . Shots . | . . . Rammed . | . . . Targets Rammed . | . . . Kicked . | . . . Crushed . | . . . Highest Temperature 20 | . 20 15 Average Temperature 5 | . 5 4 Received Heat Transfer 144 | . 90 54 Siege Activations . | . . . Martial Activations . | . . . Shielding Activations . | . . . Robots Disrupted . | . . . Combat Hostiles . | . . . Robots Corrupted . | . . . Combat Hostiles . | . . . Parts Fried . | . . . Impact Corruptions . | . . . Robots Melted . | . . . Combat Hostiles . | . . . Parts Melted . | . . . Heat Transferred . | . . . Parts Sabotaged . | . . . Parts Stolen . | . . . Parts Stripped . | . . . Power Chain Reactions . | . . . Alert | -11 -10 -10 ------- Run | Yrd Mat Min Maximum Alert Level . | . . . Low Security (%) 100 | 100 100 100 Level 1 . | . . . Level 2 . | . . . Level 3 . | . . . Level 4 . | . . . Level 5 . | . . . High Security . | . . . Max Security . | . . . Peak Influence 86 | 20 85 86 Initial 16 | . 6 16 Average 24 | 3 26 23 Influence Increases 444 | 20 354 70 Destroy 0b10 Robot/C 300 | 20 220 60 Destroy 0b10 Robot/NC 15 | . 15 . Destroy Leader 64 | . 54 10 Successful Hack 4 | . 4 . Destroy Structure 1 | . 1 . Lose Combat Pursuer 60 | . 60 . Influence Decreases 444 | 10 320 114 Entered New Map 32 | . 4 28 Time Decay 392 | 10 296 86 Lost Part 20 | . 20 . Squads Dispatched 5 | . 5 . Investigation 2 | . 2 . Extermination . | . . . Reinforcement 3 | . 3 . Assault . | . . . Garrison . | . . . Intercept . | . . . Searches Triggered . | . . . Construction Impeded . | . . . Haulers Reinforced . | . . . Active Scanning Responses . | . . . Cargo Convoy Interrupts . | . . . Stealth | -11 -10 -10 --------- Run | Yrd Mat Min Distress Signals 1 | . 1 . Communications Jammed . | . . . Distress Signals . | . . . Times Spotted 31 | 1 23 7 Peak Tracking Total 4 | 1 3 4 Tactical Retreats 4 | . 4 . Traps | -11 -10 -10 ------- Run | Yrd Mat Min Traps Triggered 2 | . 2 . Indirectly . | . . . Trap Hack Attempts . | . . . Triggered . | . . . Disarmed . | . . . Reprogrammed . | . . . Reused . | . . . Traps Extracted . | . . . Installed . | . . . Triggered . | . . . Machines | -11 -10 -10 ---------- Run | Yrd Mat Min Machines Disabled . | . . . Max in Single Turn . | . . . Machines Repaired . | . . . Machines Dismantled . | . . . Machines Sabotaged . | . . . Overloaded Fab Kills . | . . . Hacking | -11 -10 -10 --------- Run | Yrd Mat Min Machines Accessed 4 | . 4 . Terminals 4 | . 4 . Fabricators . | . . . Repair Stations . | . . . Recycling Units . | . . . Scanalyzers . | . . . Garrison Access . | . . . Total Hacks 8 | . 8 . Successful 4 | . 4 . Failed 4 | . 4 . Catastrophic . | . . . Database Lockouts . | . . . Manual 2 | . 2 . Terminals 8 | . 8 . Fabricators . | . . . Repair Stations . | . . . Recycling Units . | . . . Scanalyzers . | . . . Garrison Access . | . . . Terminal Hacks 4 | . 4 . Prototype ID Bank 1 | . 1 . Emergency Access Points 1 | . 1 . Terminal Index 1 | . 1 . Zone Layout 1 | . 1 . Fabricator Hacks . | . . . Repair Station Hacks . | . . . Recycling Unit Hacks . | . . . Scanalyzer . | . . . Garrison Access Hacks . | . . . Unauthorized Hacks . | . . . Terminals . | . . . Fabricators . | . . . Repair Stations . | . . . Recycling Units . | . . . Scanalyzers . | . . . Garrison Access . | . . . Data Cores Recovered . | . . . Used . | . . . Hacking Detections 4 | . 4 . Full Trace Events 1 | . 1 . Feedback Events . | . . . Feedback Blocked . | . . . Robot Schematics Acquired . | . . . Robots Built . | . . . Authchips . | . . . Time . | . . . Total Robot Build Rating . | . . . Part Schematics Acquired . | . . . Parts Built . | . . . Authchips . | . . . Time . | . . . Total Part Build Rating . | . . . Parts Repaired . | . . . Time . | . . . Parts Recycled . | . . . Recycled Matter . | . . . Retrieved Matter . | . . . Retrieved Components . | . . . Parts Scanalyzed . | . . . Part Schematics Acquired . | . . . Parts Damaged . | . . . Bothacking | -11 -10 -10 ------------ Run | Yrd Mat Min Used RIF Installer . | . . . Robots Hacked . | . . . Non-combat . | . . . Combat . | . . . Robot Hacks Applied . | . . . Relay Couplers Released . | . . . Fabnet Peak Effective % . | . . . Robots Rewired . | . . . Allies Hacked . | . . . Hacks Repelled . | . . . Allies | -11 -10 -10 -------- Run | Yrd Mat Min Total Allies . | . . . Largest Group . | . . . Highest-Rated Group . | . . . Highest-Rated Ally . | . . . Total Orders . | . . . Ally Attacks . | . . . Total Damage . | . . . Kills . | . . . Allies Corrupted . | . . . Allies Melted . | . . . Intel | -11 -10 -10 ------- Run | Yrd Mat Min Active Infowar (turns) . | . . . Robot Analysis Total . | . . . Derelict Logs Recovered 2 | . . 2 Drone Launches . | . . . Drone Recoveries . | . . . Exploration | -11 -10 -10 ------------- Run | Yrd Mat Min Turns Passed 1498 | 82 1099 317 Spaces Moved 1186 | 82 849 255 Core 21 | 20 . 1 Treads . | . . . Legs . | . . . Wheels 198 | 62 136 . Hover 967 | . 713 254 Flight . | . . . Fastest Speed 50 | 50 80 56 Average Speed 109 | 72 110 116 Slowest Speed 200 | 80 180 200 Overloaded Moves . | . . . Propulsion Burnouts . | . . . Robots Hopped . | . . . Potential Cave-ins . | . . . Cave-ins Triggered . | . . . Exploration Rate (%) 42 | 5 76 46 Regions Visited 2 Branch Regions 1 Pre-discovered Areas 2 | . . 2 Known Exits Taken 1 | . 1 . Unknown Exits Taken 1 | 1 . . Scrap Searched . | . . . Spaces Dug . | . . . Terrain Destroyed . | . . . Melee . | . . . Projectile . | . . . AOE . | . . . Terrain Rammed . | . . . Walls Destroyed . | . . . Machines Disabled . | . . . Actions | -11 -10 -10 --------- Run | Yrd Mat Min Total 1291 | 98 930 263 Wait 2 | . 2 . Move 1184 | 81 848 255 Hop . | . . . Pick Up 26 | 9 17 . Fast Attach . | . . . Attach 12 | 5 6 1 Detach 1 | . 1 . Swap 5 | . 5 . Drop 7 | . 7 . Fire 54 | 3 44 7 Melee . | . . . Ram . | . . . Kick . | . . . Crush . | . . . Escape Stasis . | . . . Rewire . | . . . Trap . | . . . Miscellaneous . | . . . Route ------- -11/Scrapyard -10/Materials (discovered 4 exits: *Mat x2 / *Min x2) -10/Mines (discovered 2 exits: *Mat x2) History --------- Turn | Location | Event 2 | -11/Scrapyard | Met Revision 17 60 | -11/Scrapyard | Discovered new exit (range 8) 83 | -11/Scrapyard | Entered Materials 125 | -10/Materials | Discovered new exit (range 16) 136 | -10/Materials | Discovered new exit (range 13) 311 | -10/Materials | Build established: Mutant 531 | -10/Materials | Identified exit to Materials 569 | -10/Materials | Identified exit to Mines 1019 | -10/Materials | Discovered exit to Mines (range 14) 1099 | -10/Materials | Discovered exit to Materials (range 3) 1182 | -10/Materials | Entered Mines 1271 | -10/Mines | Learned location of Mines (-9) 1334 | -10/Mines | Discovered exit to Materials (range 7) 1353 | -10/Mines | Learned location of Recycling (-9) 1385 | -10/Mines | Discovered exit to Materials (range 6) 1477 | -10/Mines | Assembled infested the area 1492 | -10/Mines | Core integrity fell below 50% 1498 | -10/Mines | Core integrity fell below 20% 1499 | -10/Mines | Destroyed by D-53 Grenadier with Mini Grenade Launcher Last Messages --------------- Acquired 13 matter. Acquired 14 matter. Acquired 13 matter. Acquired derelict log, extracted data. World map updated: -9/Mines. EXIT=FOUND: MATERIALS K-01 Serf collects debris. Acquired derelict log, extracted data. World map updated: -9/Recycling. EXIT=FOUND: MATERIALS ALERT: Infestation in the mines, dispatching Demolisher response squad. C-30 ARC bursts open, deploying its payload. D-53 Grenadier unfolds itself. Critical hit (Burn: +37). Lgt. Ion Engine destroyed. Assault Rifle destroyed. K-01 Serf destroyed. Hover Unit destroyed. The unstable cave ceiling collapses. Map ----- +----------------------------------------------------+ | ???????????????????## #??????# #?????????? | | ????????????????????## #??????# #?????????? | | ?????????????????????## ##?????# ####??????? | | ??????????????????????# ####### #??????? | | ?????????????????????## ## #??????? | | ?????????????????????# ##### #??????? | | ????????????????????# ## #??# #??????? | | ???????????????????# #### #??# #??????? | | ???????????????????# #?## #??# ##?????? | | ???????????????????# < #?# ##?## ##????? | | ???????????????????# ##?# " #?## #????? | | ??????????????????# ###??# r"#### #????? | | ??????????????????## #????## #?# ##???? | | ???????????????????##?????# ##?# ##??? | | ????????????????#####????## #??## ## #??? | | ???????????????##"Y "#??## #???###?## #??? | | ???????????????#!! Y!!?## dd #???????## ##??? | | ???????????????#!! [[## #####???# #???? | | ????????????????# #?# < #???? | | ???????????????### #?# #???? | | ?????????????### ## ### #?## ##???? | | ????????????## # #?# #??###?????? | | ???????????## #?# #??????????? | | ???????????# = # #?# ####???????? | | ??????????# #?# #???????? | | ?????????# # @ # #?#### #???????? | | ????????# ## ## #????# #???????? | | ????????# #?## #???## ##??????? | | ?????????# #???#### ######???# ##?????? | | ?????????### ##???????####???????## ##????? | | ?????????? ????????????????????## ###??? | | ??????????????????????????????### ##?? | | ???????????????????????????#### """" #?? | | ???????????????????????????# """" #?? | | ???????????????????????????# """" ##?? | | ???????????????????????????## ###??? | | ????????????????????????????### ### #????? | | ??????????????????????????????# ??## #????? | | ??????????????????????????????#????### #????? | | ?????????????????????????????????????# #????? | | ?????????????????????????????????????# ##???? | | ?????????????????????????????????????# #???? | | ?????????????????????????????????????### #???? | | ??????????????????????????????????????## #???? | | ?????????????????????????????????????## ##??? | | ????????????????????????????????????## #??? | | ???????????????????????????????????## #??? | | ???????????????????????????????????# ##?? | | ???????????????????????????????????# #?? | | ??????????????????????????????????## """ #?? | +----------------------------------------------------+ Best States ------------- Heat Dissipation 25 Energy Generation 10 Energy Capacity 250 Matter Stores 300 Matter Capacity 300 Sight Range 16 Terrain Scan Density 10 Evasion (%) 50 Targeting Accuracy 5 Item Schematics ----------------- None Robot Schematics ------------------ None Fabricated ------------ Nothing Repaired ---------- Nothing Alien Tech Used ----------------- None Achievements -------------- None Challenges ------------ None Game ------ Seed SpliceGhostBeam Manual? 0 Play Time 00:20:31 Cumulative 1.8 hours Start 2025.06.03 @ 16:54:20 End 2025.06.03 @ 17:15:58 Sessions 1 Manual Loads 0 Difficulty Rogue Special Mode None Game No. 3 Rogue 3 Adventurer 0 Explorer 0 Win Type - Total 0 Types 0/0/0/0/0/0/0/0/0/0 Lore% 1 Gallery% 4 Achievement% 4 Wizard Run 0 Options --------- Layout 1 ASCII 0 Keyboard 0 Movement Arrows Keybinds 0 Fullscreen 1 Font 32/SmallcapsGlow Map View 50x35 Zoom Use 0% Tactical HUD 0 Map Filters NONE Filters NONE Steam 1 RUN: 7b0b322d-f96a-417a-b067-735225971a82